Cogmind - Beta 17.1 @@@ ROGUE MODE // 2026.08.26 @ 15:34:06 Player: Caluan Result: Destroyed by S-10 Pest with Light Assault Rifle Performance ------------- Evolutions (2) 1000 Regions Visited (5) 1000 Robots Destroyed (49) 245 Value Destroyed (1323) 1323 Prototype IDs (2) 40 Alien Tech Used (0) 0 Bonus (142) 142 TOTAL SCORE: 3750 Bonus ------- Follower Combat Kills 142 Cogmind --------- Core Integrity 0/550 Matter 263/300 Energy 55/100 System Corruption 5% Temperature Cool (0) Movement Core (50) Location -8/Materials Parts ------- > --- POWER (1) -------- (None) > --- PROPULSION (4) --- (None) > --- UTILITY (3) ------ (None) > --- WEAPON (3) ------- (None) > --- INVENTORY (5) ---- Light Nuclear Core Huge Storage Unit Medium Armor Plating Heavy EM Pulse Gun Mining Laser Peak State ------------ > --- POWER ------------ Light Nuclear Core > --- PROPULSION ------- Light Treads Light Treads Improved Treads > --- UTILITY ---------- Huge Storage Unit Light Armor Plating > --- WEAPON ----------- Improved Light Cannon Axe > --- INVENTORY -------- Light Angular Momentum Engine Medium Storage Unit Huge Storage Unit Core Shielding Medium Armor Plating EM Pulse Gun Rocket Launcher Mining Laser [Rating: 15] Favorites ----------- Power Light Ion Engine Engine Light Ion Engine Power Core Light Nuclear Core Propulsion Light Treads Treads Light Treads Utility Huge Storage Unit Storage Huge Storage Unit Protection Light Armor Plating Weapon Assault Rifle Energy Gun Heavy EM Pulse Gun Ballistic Gun Assault Rifle Ballistic Cannon Improved Light Cannon Slashing Weapon Axe Build | -11 -10 -10 -10 -9 -8 ------- Run | Yrd Mat Min Exi Min Mat Slots Evolved 4 | . . . . . 4 Power . | . . . . . . Propulsion 2 | . . . . . 2 Utility 1 | . . . . . 1 Weapon 1 | . . . . . 1 Parts Attached 32 | 6 5 3 . . 18 Power 4 | 1 1 . . . 2 Engine 3 | 1 1 . . . 1 Core 1 | . . . . . 1 Reactor . | . . . . . . Propulsion 10 | 2 1 1 . . 6 Treads 10 | 2 1 1 . . 6 Leg . | . . . . . . Wheel . | . . . . . . Hover . | . . . . . . Flight . | . . . . . . Utility 7 | 1 2 1 . . 3 Device . | . . . . . . Storage 3 | 1 2 . . . . Processor . | . . . . . . Hackware . | . . . . . . Protection 4 | . . 1 . . 3 Artifact . | . . . . . . Weapon 11 | 2 1 1 . . 7 Energy Gun 6 | 1 . . . . 5 Energy Cannon . | . . . . . . Ballistic Gun 3 | 1 1 1 . . . Ballistic Cannon 1 | . . . . . 1 Launcher . | . . . . . . Special Weapon . | . . . . . . Impact Weapon . | . . . . . . Slashing Weapon 1 | . . . . . 1 Piercing Weapon . | . . . . . . Special Melee Weapon . | . . . . . . Unidentified Prototypes . | . . . . . . Corrupted Parts 1 | . . . . . 1 System Corruption 5 | . . . . . 5 Parts Lost 28 | . . 5 . . 23 Power 4 | . . 1 . . 3 Propulsion 10 | . . 2 . . 8 Utility 4 | . . 1 . . 3 Weapon 10 | . . 1 . . 9 Highest Loss Streak 7 | . . 4 . . 7 To Critical Strikes . | . . . . . . Average Backups 7 | . 5 9 8 8 7 Power . | . . . 1 1 . Propulsion 1 | . 1 2 1 1 . Utility 2 | . 2 2 2 2 3 Weapon 3 | . 1 4 4 4 2 Tool/Special . | . . . . . . Unused Backups 7 | . 1 . . . 6 Power . | . . . . . . Propulsion . | . . . . . . Utility 4 | . 1 . . . 3 Weapon 3 | . . . . . 3 Tool/Special . | . . . . . . Average Slot Usage (%) 76 | . 84 84 85 85 47 Engine 11 | . 14 14 14 14 1 Treads 25 | . 27 27 28 28 15 Storage 12 | . 14 14 14 14 6 Protection 1 | . . 4 . . 1 Energy Gun 1 | . 1 . . . 5 Ballistic Gun 21 | . 26 23 28 28 5 Slashing Weapon 1 | . . . . . 4 Peak Build Rating 15 | 6 6 7 7 7 15 Average Rating 7 | 4 5 6 7 7 9 On Entrance 5 | . 6 6 7 7 7 Avg Prop Armor Cover (%) . | . . . . . . Naked Turns 12 | . . . . . 12 Heaviest Build 94 | 12 88 90 86 86 94 Greatest Support 83 | 40 40 40 40 40 83 Greatest Overweight (x) 31 | . 2 2 2 2 31 Average Overweight (x) 1 | . 1 2 2 2 2 Largest Inventory Capacity 25 | 8 25 25 25 25 25 Average Capacity 22 | 6 18 25 25 25 19 Most Carried 12 | 2 8 12 8 11 11 Average Carried 7 | . 5 9 8 8 7 Final Capacity 25 | 8 25 25 25 25 5 Final Carried 11 | . 8 8 8 11 5 Class Distribution -------------------- 55% | Mutant 38% | Commander-Mutant 4% | Scavenger-Mutant Dominant Class ---------------- Mutant | -10/Materials Mutant | -10/Mines Commander-Mutant | -10/Exiles Commander-Mutant | -9/Mines Mutant | -8/Materials Resources | -11 -10 -10 -10 -9 -8 ----------- Run | Yrd Mat Min Exi Min Mat Matter Collected 970 | 220 195 149 . 9 397 Remotely . | . . . . . . Salvage Created 1651 | . 399 124 . . 1128 Parts 91 | . 30 8 . . 53 Haulers Intercepted 5 | . 2 . . . 3 Recyclers Shooed . | . . . . . . Parts Field Recycled . | . . . . . . Retrieved Matter . | . . . . . . Parts Self-Destructed . | . . . . . . Prevented . | . . . . . . Parts Restored . | . . . . . . Kills | -11 -10 -10 -10 -9 -8 ------- Run | Yrd Mat Min Exi Min Mat Combat Hostiles Destroyed 38 | . 10 5 . . 23 Melee 6 | . . . . . 6 Guns 23 | . 10 5 . . 8 Cannons 9 | . . . . . 9 Classes Destroyed 9 | . 4 . . 1 4 Worker 1 | . . . . 1 . Builder 2 | . 1 . . . 1 Hauler 5 | . 2 . . . 3 Recycler 1 | . . . . . 1 Watcher 2 | . . . . . 2 Swarmer 14 | . 6 3 . . 5 Grunt 19 | . 4 2 . . 13 Sentry 4 | . . . . . 4 Hunter 1 | . . . . . 1 Best Kill Streak 6 | . 6 3 . 1 4 Combat Bots Only 5 | . 5 3 . . 4 Max Kills in Single Turn 2 | . 2 1 . 1 2 Gunslinging . | . . . . . . Exploded . | . . . . . . Melee 1 | . . . . . 1 Uniques/NPCs Destroyed . | . . . . . . Combat | -11 -10 -10 -10 -9 -8 -------- Run | Yrd Mat Min Exi Min Mat Hostile Shots Fired 354 | . 60 60 . 11 223 Missed 90 | . 13 18 . 4 55 Hits 264 | . 47 42 . 7 168 Projectile 264 | . 47 42 . 7 168 Critical Strikes 6 | . . 2 . . 4 Damage Taken 3378 | . 508 443 . 52 2375 Core 715 | . 110 33 . 20 552 Absorbed by Shields . | . . . . . . Regen/Repaired (Parts) 115 | . 115 . . . . Core Remaining (%) 67 | 100 . . . 34 . Volleys Fired 154 | . 37 34 . 1 82 Largest 3 | . 2 2 . 2 3 Hottest 135 | . 60 40 . 40 135 Shots Fired 266 | . 74 36 . 2 154 Gun 213 | . 74 36 . 2 101 Cannon 53 | . . . . . 53 Launcher . | . . . . . . Special . | . . . . . . Kinetic 204 | . 63 36 . 2 103 Thermal . | . . . . . . Explosive . | . . . . . . Electromagnetic 62 | . 11 . . . 51 Robot Hit Streak 22 | . 7 6 . 1 22 Robot Miss Streak 5 | . 5 2 . 1 4 Penetration Max . | . . . . . . Secondary Targets 3 | . 2 . . . 1 Max Gunslinging Chain 1 | . 1 . . . 1 Shots Hit Robots 205 | . 43 24 . 1 137 Core Hits 85 | . 21 9 . . 55 Critical Kills . | . . . . . . Critical Parts Destroyed . | . . . . . . Critical Strikes 5 | . . . . . 5 Blast 1 | . . . . . 1 Sever 4 | . . . . . 4 Melee Attacks 46 | . . . . . 46 Impact . | . . . . . . Slashing 46 | . . . . . 46 Piercing . | . . . . . . Sneak Attacks 2 | . . . . . 2 Combat Hostiles . | . . . . . . Follow-up Attacks . | . . . . . . Damage Inflicted 3773 | . 674 325 . 15 2759 Guns 1639 | . 503 318 . 9 809 Cannons 825 | . . . . . 825 Explosions 170 | . 170 . . . . Melee 1111 | . . . . . 1111 Ramming 28 | . 1 7 . 6 14 Kinetic 1857 | . 373 318 . 9 1157 Thermal 170 | . 170 . . . . Explosive . | . . . . . . Electromagnetic 607 | . 130 . . . 477 Impact . | . . . . . . Slashing 1111 | . . . . . 1111 Piercing . | . . . . . . Highest Corruption 5 | . . . . . 5 Average Corruption 5 | . . . . . 5 Corruption Purged . | . . . . . . Corruption Blocked . | . . . . . . Effects 2 | . . . . . 2 Matter Fused 1 | . . . . . 1 Heat Flow Errors 1 | . . . . . 1 Overload Shots . | . . . . . . Overflow Damage 68 | . 24 . . . 44 Projectiles . | . . . . . . Explosions 24 | . 24 . . . . Melee 44 | . . . . . 44 Knockbacks 10 | . . . . . 10 Impact . | . . . . . . Kinetic 10 | . . . . . 10 Secondary . | . . . . . . Self-Inflicted Damage 80 | . 78 . . . 2 Shots 2 | . 2 . . . . Rammed 7 | . 2 2 . . 3 Targets Rammed 8 | . 2 2 . 1 3 Kicked . | . . . . . . Crushed 1 | . . . . 1 . Highest Temperature 166 | . 69 20 . . 166 Average Temperature 25 | . 29 6 . . 26 Received Heat Transfer 1359 | . 105 192 . . 1062 Siege Activations . | . . . . . . Martial Activations . | . . . . . . Shielding Activations . | . . . . . . Robots Disrupted . | . . . . . . Combat Hostiles . | . . . . . . Robots Corrupted . | . . . . . . Combat Hostiles . | . . . . . . Parts Fried 3 | . . . . . 3 Impact Corruptions . | . . . . . . Robots Melted . | . . . . . . Combat Hostiles . | . . . . . . Parts Melted . | . . . . . . Heat Transferred 250 | . 250 . . . . Parts Sabotaged . | . . . . . . Parts Stolen . | . . . . . . Parts Stripped . | . . . . . . Power Chain Reactions 3 | . 3 . . . . Alert | -11 -10 -10 -10 -9 -8 ------- Run | Yrd Mat Min Exi Min Mat Maximum Alert Level 1 | . 1 . . . 1 Low Security (%) 99 | 100 97 100 . 100 99 Level 1 . | . 2 . . . . Level 2 . | . . . . . . Level 3 . | . . . . . . Level 4 . | . . . . . . Level 5 . | . . . . . . High Security . | . . . . . . Max Security . | . . . . . . Peak Influence 219 | . 215 70 . 133 219 Initial 42 | . . 5 . . 42 Average 34 | . 40 6 . 19 63 Influence Increases 1628 | . 388 120 . 211 909 Destroy 0b10 Robot/C 920 | . 200 100 . 140 480 Destroy 0b10 Robot/NC 55 | . 15 . . 5 35 Destroy Leader 194 | . 34 20 . 20 120 Allied During Kill 54 | . . . . 46 8 Successful Hack 83 | . 29 . . . 54 Disable Machine 45 | . 15 . . . 30 Destroy Structure 22 | . 20 . . . 2 Partial Spotted 15 | . 15 . . . . Lose Combat Pursuer 240 | . 60 . . . 180 Influence Decreases 1433 | . 374 134 . 102 823 Entered New Map 76 | . . 9 . . 67 Time Decay 1083 | . 374 111 . 102 496 Lost Part 224 | . . 14 . . 210 Lost Ally 50 | . . . . . 50 Squads Dispatched 6 | . . . . . 6 Investigation 3 | . . . . . 3 Extermination . | . . . . . . Reinforcement 2 | . . . . . 2 Assault . | . . . . . . Garrison 1 | . . . . . 1 Intercept . | . . . . . . Searches Triggered . | . . . . . . Construction Impeded . | . . . . . . Haulers Reinforced . | . . . . . . Active Scanning Responses . | . . . . . . Cargo Convoy Interrupts . | . . . . . . Stealth | -11 -10 -10 -10 -9 -8 --------- Run | Yrd Mat Min Exi Min Mat Distress Signals 4 | . 2 . . . 2 Communications Jammed . | . . . . . . Distress Signals . | . . . . . . Times Spotted 91 | . 31 5 . 6 49 Peak Tracking Total 8 | . 4 3 . 3 8 Tactical Retreats 8 | . 2 . . . 6 Traps | -11 -10 -10 -10 -9 -8 ------- Run | Yrd Mat Min Exi Min Mat Traps Triggered . | . . . . . . Indirectly . | . . . . . . Trap Hack Attempts . | . . . . . . Triggered . | . . . . . . Disarmed . | . . . . . . Reprogrammed . | . . . . . . Reused . | . . . . . . Traps Extracted . | . . . . . . Installed . | . . . . . . Triggered . | . . . . . . Machines | -11 -10 -10 -10 -9 -8 ---------- Run | Yrd Mat Min Exi Min Mat Machines Disabled 3 | . 1 . . . 2 Max in Single Turn 1 | . 1 . . . 1 Machines Repaired . | . . . . . . Machines Dismantled . | . . . . . . Machines Sabotaged . | . . . . . . Overloaded Fab Kills . | . . . . . . Hacking | -11 -10 -10 -10 -9 -8 --------- Run | Yrd Mat Min Exi Min Mat Machines Accessed 18 | . 8 1 1 1 7 Terminals 14 | . 7 1 . 1 5 Fabricators . | . . . . . . Repair Stations 1 | . 1 . . . . Recycling Units 1 | . . . . . 1 Scanalyzers 1 | . . . . . 1 Garrison Access . | . . . . . . Total Hacks 79 | . 29 2 23 1 24 Successful 58 | . 13 2 23 1 19 Failed 21 | . 16 . . . 5 Catastrophic 2 | . 2 . . . . Database Lockouts . | . . . . . . Manual 34 | . 17 1 . 1 15 Terminals 42 | . 24 2 . 1 15 Fabricators . | . . . . . . Repair Stations 5 | . 5 . . . . Recycling Units 3 | . . . . . 3 Scanalyzers 6 | . . . . . 6 Garrison Access . | . . . . . . Terminal Hacks 31 | . 3 1 23 . 4 Record 24 | . . 1 23 . . Part Schematic 1 | . 1 . . . . Prototype ID Bank 1 | . 1 . . . . Branch Access Points 1 | . . . . . 1 Terminal Index 1 | . . . . . 1 Recycling Unit Index 1 | . . . . . 1 Alert Level 1 | . . . . . 1 Investigation Status 1 | . 1 . . . . Fabricator Hacks . | . . . . . . Repair Station Hacks 2 | . 2 . . . . Scan Component 1 | . 1 . . . . Repair 1 | . 1 . . . . Recycling Unit Hacks 2 | . . . . . 2 Report Inventory 1 | . . . . . 1 Retrieve Components 1 | . . . . . 1 Scanalyzer 6 | . . . . . 6 Insert Component 3 | . . . . . 3 Analyze 2 | . . . . . 2 Retrieve Study 1 | . . . . . 1 Garrison Access Hacks . | . . . . . . Unauthorized Hacks 17 | . 8 1 . 1 7 Terminals 16 | . 8 1 . 1 6 Track 1 | . . . . 1 . Assimilate 4 | . 2 . . . 2 Botnet 9 | . 5 1 . . 3 Operators 2 | . 1 . . . 1 Fabricators . | . . . . . . Repair Stations . | . . . . . . Recycling Units 1 | . . . . . 1 Reject 1 | . . . . . 1 Scanalyzers . | . . . . . . Garrison Access . | . . . . . . Data Cores Recovered . | . . . . . . Used . | . . . . . . Hacking Detections 12 | . 6 1 . . 5 Full Trace Events 5 | . 2 . . . 3 Feedback Events . | . . . . . . Feedback Blocked . | . . . . . . Robot Schematics Acquired . | . . . . . . Robots Built . | . . . . . . Authchips . | . . . . . . Time . | . . . . . . Total Robot Build Rating . | . . . . . . Part Schematics Acquired 3 | . 1 . . . 2 Parts Built . | . . . . . . Authchips . | . . . . . . Time . | . . . . . . Total Part Build Rating . | . . . . . . Part Studies Acquired 1 | . . . . . 1 Parts Repaired 1 | . 1 . . . . Time 13 | . 13 . . . . Parts Recycled . | . . . . . . Recycled Matter . | . . . . . . Retrieved Matter . | . . . . . . Retrieved Components 9 | . . . . . 9 Parts Scanalyzed 2 | . . . . . 2 Part Schematics Acquired 2 | . . . . . 2 Parts Damaged . | . . . . . . Bothacking | -11 -10 -10 -10 -9 -8 ------------ Run | Yrd Mat Min Exi Min Mat Used RIF Installer . | . . . . . . Robots Hacked . | . . . . . . Non-combat . | . . . . . . Combat . | . . . . . . Robot Hacks Applied . | . . . . . . Relay Couplers Released . | . . . . . . Fabnet Peak Effective % . | . . . . . . Robots Rewired . | . . . . . . Allies Hacked . | . . . . . . Hacks Repelled . | . . . . . . Allies | -11 -10 -10 -10 -9 -8 -------- Run | Yrd Mat Min Exi Min Mat Total Allies 7 | . 1 4 . 2 . Largest Group 6 | . 1 4 4 6 4 Highest-Rated Group 96 | . 10 49 49 96 72 Highest-Rated Ally 31 | . 10 31 16 31 31 Total Orders . | . . . . . . Ally Attacks 62 | . . . . 47 15 Total Damage 731 | . . . . 473 258 Kills 10 | . . . . 8 2 Allies Corrupted . | . . . . . . Allies Melted . | . . . . . . Intel | -11 -10 -10 -10 -9 -8 ------- Run | Yrd Mat Min Exi Min Mat Active Infowar (turns) . | . . . . . . Robot Analysis Total . | . . . . . . Derelict Logs Recovered 2 | . . 1 . 1 . Drone Launches . | . . . . . . Drone Recoveries . | . . . . . . Exploration | -11 -10 -10 -10 -9 -8 ------------- Run | Yrd Mat Min Exi Min Mat Turns Passed 7293 | 94 1725 1329 1429 1141 1575 Spaces Moved 2274 | 55 595 388 447 351 438 Core 150 | 4 . . . . 146 Treads 2124 | 51 595 388 447 351 292 Legs . | . . . . . . Wheels . | . . . . . . Hover . | . . . . . . Flight . | . . . . . . Fastest Speed 50 | 50 160 320 320 320 50 Average Speed 282 | 152 246 320 320 320 247 Slowest Speed 1600 | 160 320 320 320 320 1600 Overloaded Moves . | . . . . . . Propulsion Burnouts . | . . . . . . Robots Hopped . | . . . . . . Potential Cave-ins . | . . . . . . Cave-ins Triggered . | . . . . . . Exploration Rate (%) 57 | 4 88 59 88 68 39 Regions Visited 5 Branch Regions 3 Pre-discovered Areas 1 | . . . 1 . . Known Exits Taken . | . . . . . . Unknown Exits Taken 5 | 1 1 1 1 1 . Scrap Searched 5 | . . 2 . 3 . Spaces Dug . | . . . . . . Terrain Destroyed 19 | . 18 . . . 1 Melee . | . . . . . . Projectile 1 | . . . . . 1 AOE 18 | . 18 . . . . Terrain Rammed . | . . . . . . Walls Destroyed . | . . . . . . Machines Disabled . | . . . . . . Actions | -11 -10 -10 -10 -9 -8 --------- Run | Yrd Mat Min Exi Min Mat Total 2803 | 66 782 437 447 367 704 Wait 244 | . 131 4 1 12 96 Move 2269 | 54 594 387 446 350 438 Hop . | . . . . . . Pick Up 36 | 6 11 5 . 3 11 Fast Attach 7 | . . . . . 7 Attach 26 | 6 1 5 . . 14 Detach 1 | . . . . . 1 Swap 6 | . 4 . . . 2 Drop 6 | . 2 . . . 4 Fire 154 | . 37 34 . 1 82 Melee 46 | . . . . . 46 Ram 1 | . . . . . 1 Kick . | . . . . . . Crush 7 | . 2 2 . 1 2 Escape Stasis . | . . . . . . Rewire . | . . . . . . Trap . | . . . . . . Miscellaneous . | . . . . . . Route ------- -11/Scrapyard -10/Materials (discovered 6 exits: [*Mat x3] / *Min x2 / [*Sub]) -10/Mines (discovered 3 exits: [*Mat x2] / *Exi) -10/Exiles (discovered 2 exits: *Min x2) -9/Mines -8/Materials History --------- Turn | Location | Event 2 | -11/Scrapyard | Met Revision 17 9 | -11/Scrapyard | Discovered new exit (range 15) 95 | -11/Scrapyard | Entered Materials 301 | -10/Materials | Build established: Mutant 390 | -10/Materials | Discovered new exit (range 15) 491 | -10/Materials | Discovered new exit (range 13) 701 | -10/Materials | Discovered new exit (range 13) 934 | -10/Materials | Repaired Lgt. Treads 1112 | -10/Materials | Discovered new exit (range 16) 1234 | -10/Materials | Discovered new exit (range 3) 1323 | -10/Materials | Discovered new exit (range 11) 1820 | -10/Materials | Entered Mines 1820 | -10/Mines | Accompanied by 1 ally 1823 | -10/Mines | Received a Mining Laser from a helpful Derelict 2175 | -10/Mines | Deemed a non-threat by the Exiles lab entrance 2179 | -10/Mines | Discovered new exit (range 5) 2259 | -10/Mines | Learned Materials emergency access door positions 2262 | -10/Mines | Received a Rocket Launcher from a helpful Derelict 2343 | -10/Mines | Discovered new exit (range 9) 2375 | -10/Mines | Core integrity fell below 50% 2770 | -10/Mines | Lost 4 parts (1p2n1u) 2813 | -10/Mines | Assisted by bots powering up and referring to "LRC-V3" 2915 | -10/Mines | Discovered new exit (range 8) 3110 | -10/Mines | Build established: Commander-Mutant 3149 | -10/Mines | Entered Exiles 3149 | -10/Exiles | Accompanied by 4 allies 3226 | -10/Exiles | Met 8R-AWN 3281 | -10/Exiles | Met EX-HEX 3448 | -10/Exiles | Met EX-DEC 3532 | -10/Exiles | Visited The Gauntlet 3886 | -10/Exiles | Learned location of Zion (-7) 3982 | -10/Exiles | Discovered new exit (range 10) 4184 | -10/Exiles | Met EX-BIN 4533 | -10/Exiles | Discovered new exit (range 15) 4578 | -10/Exiles | Entered Mines 4578 | -9/Mines | Accompanied by 4 allies 4793 | -9/Mines | Learned 2 Materials zone layouts 5664 | -9/Mines | Discovered new exit (range 10) 5719 | -9/Mines | Entered Materials 5719 | -8/Materials | Accompanied by 4 allies 5719 | -8/Materials | Evolved 4 slots: Propulsion x2, Utility x1, Weapon x1 5724 | -8/Materials | Led the pair of lost Derelicts to an unsafe place 5937 | -8/Materials | Lost 4 allies 6324 | -8/Materials | Build established: Scavenger-Mutant 6455 | -8/Materials | Lost 7 parts (1p4n1u1w) 6678 | -8/Materials | Build established: Mutant 6923 | -8/Materials | Core integrity fell below 50% 7123 | -8/Materials | Lost 3 parts (1p1n1w) 7235 | -8/Materials | Garrison activated, responded to threat 7285 | -8/Materials | Core integrity fell below 20% 7294 | -8/Materials | Destroyed by S-10 Pest with Light Assault Rifle Last Messages --------------- Destroyed Flight Unit. R-06 Scavenger inserts Particle Gun into recycling unit. Particle Gun discarded by recycling unit. S-10 Pest destroyed. R-06 Scavenger collects Particle Gun. Axe destroyed. R-06 Scavenger inserts Particle Gun into recycling unit. Particle Gun discarded by recycling unit. R-06 Scavenger collects Lgt. Ion Engine. Lgt. Treads+ destroyed. R-06 Scavenger sends out distress signal. S-10 Pest destroyed. Hvy. EM Pulse Gun destroyed. Lgt. Treads+ destroyed. Hvy. EM Pulse Gun destroyed. Acquired Lgt. Nuclear Core. Slammed into G-47 Trooper. Acquired 20 matter. Map ----- +----------------------------------------------------+ | | | | | | | | | | | | | | | | | | | | | | | | | | | | | | | | | | | | | ?????????????????????????????????????????????????? | | ?????????????????????????????????????????????????? | | ?????????????????????????????????????????????????? | | ???????????????????????????#######???????????????? | | ??????????################## #???????????????? | | ????????? " #???????????????? | | ????????H o "T #???????????????? | | ????????? @ s #???????????????? | | ????????????????###+######## / ]#???????????????? | | ???????????????????????###### ##???????????????? | | ???????????????????????#=![!# #????????????????? | | ???????????????????????#""[[# #????????????????? | | ???????????????????????#"Y[ /%" #????????????????? | | ???????????????????????#""[[#%%" o ?????????? | | ???????????????????????# !![# " T ??????? | | ???????????????????????# !# ?????? | | ???????????????????????# # ######### ! ?????? | | ???????????????????????# # #?????????? #??????? | | ???????????????????????# % # #??????????????????? | | ????????????????????######+## #??????????????????? | | ????????????????????# =!!# #??????????????????? | | ????????????????????# """ ! # #??????????????????? | | ????????????????????# """ # #???????? #??????? | | ????????????????????# """ # #?????##? #??????? | | ????????????????????# # #????? #? #??????? | | #######+#############/#### ##???? ## #??????? | | #???? ## #??????? | | #???? ## #??????? | | #??? ## #??????? | | ######################### ##?? ## #??????? | | #???????????????????????# ## ? ## #??????? | | #???????????????????????# ## ## #??????? | +----------------------------------------------------+ Best States ------------- Heat Dissipation 31 Energy Generation 18 Energy Capacity 250 Matter Stores 300 Matter Capacity 300 Sight Range 16 Terrain Scan Density 10 Armor Coverage 225 Evasion (%) 50 Recoil Reduction 4 Item Schematics ----------------- Assault Rifle | -10/Materials | Hacked Imp. Light Cannon | -8/Materials | Scanalyzed Imp. Treads | -8/Materials | Scanalyzed Robot Schematics ------------------ None Fabricated ------------ Nothing Repaired ---------- Lgt. Treads | 17% | -10/Materials Studied --------- Lgt. Treads | -8/Materials | Hacked Alien Tech Used ----------------- None Achievements -------------- A Problem For Future Me You Again Challenges ------------ None Game ------ Seed PlasmaNeutronData Manual? 0 Play Time 00:34:23 Cumulative 206.3 hours Start 2026.08.26 @ 14:57:28 End 2026.08.26 @ 15:34:06 Sessions 1 Manual Loads 0 Difficulty Rogue Special Mode None Game No. 252 Rogue 252 Adventurer 0 Explorer 0 Win Type - Total 2 Types 2/0/0/0/0/0/0/0/0/0 Lore% 28 Gallery% 53 Achievement% 32 Wizard Run 0 Options --------- Layout 1 ASCII 0 Keyboard 0 Movement Numpad Keybinds 0 Fullscreen 2 Font 24/Smallcaps Map View 50x35 Zoom Use 0% Tactical HUD 0 Map Filters NONE Filters NONE Steam 1 RUN: eb924366-90b6-49f6-9eef-ac0c0e983ee3